[Event "*** Titled Tuesday 3|2 Blitz"]
[Site "Chess.com"]
[Date "2017.05.02"]
[Round "9"]
[White "hermionegrangermagic"]
[Black "IIIlllII1llIl"]
[Result "0-1"]
[WhiteElo "2288"]
[BlackElo "2533"]
[TimeControl "180+2"]
[EndTime "15:01:13 PDT"]
[Termination "IIIlllII1llIl won by resignation"]

1. e4 {[%clk 0:03:02]} 1... c5 {[%clk 0:02:52.3]} 2. Nf3 {[%clk 0:03:02.3]} 2...
d6 {[%clk 0:02:53.1]} 3. d4 {[%clk 0:03:03.2]} 3... cxd4 {[%clk 0:02:52.2]} 4.
Nxd4 {[%clk 0:03:03.6]} 4... Nf6 {[%clk 0:02:53.8]} 5. Nc3 {[%clk 0:03:04.9]}
5... a6 {[%clk 0:02:55]} 6. a4 {[%clk 0:03:06]} 6... g6 {[%clk 0:02:49.9]} 7.
Be2 {[%clk 0:03:04.8]} 7... Bg7 {[%clk 0:02:50.6]} 8. Be3 {[%clk 0:03:05.4]}
8... Nbd7 {[%clk 0:02:46.3]} 9. O-O {[%clk 0:03:04.2]} 9... O-O {[%clk
0:02:38.5]} 10. a5 {[%clk 0:03:01.8]} 10... Qc7 {[%clk 0:01:50]} 11. f4 {[%clk
0:02:56.9]} 11... b5 {[%clk 0:01:39.5]} 12. axb6 {[%clk 0:02:12.4]} 12... Nxb6
{[%clk 0:01:40.5]} 13. Bf3 {[%clk 0:02:05.8]} 13... Bb7 {[%clk 0:01:37.7]} 14.
e5 {[%clk 0:01:58.9]} 14... dxe5 {[%clk 0:00:41.5]} 15. fxe5 {[%clk 0:01:52.3]}
15... Qxe5 {[%clk 0:00:31.6]} 16. Qd3 {[%clk 0:01:22]} 16... Nfd5 {[%clk
0:00:23.8]} 17. Nxd5 {[%clk 0:01:09.5]} 17... Nxd5 {[%clk 0:00:25.7]} 18. Bf2
{[%clk 0:01:10.2]} 18... Nf4 {[%clk 0:00:20.3]} 19. Qb3 {[%clk 0:01:04.6]} 19...
Bxf3 {[%clk 0:00:13.6]} 20. Qxf3 {[%clk 0:01:05.1]} 20... Ne6 {[%clk 0:00:06.9]}
21. Nc6 {[%clk 0:00:58]} 21... Qxb2 {[%clk 0:00:08]} 22. Nxe7+ {[%clk
0:00:58.3]} 22... Kh8 {[%clk 0:00:09.2]} 23. Rac1 {[%clk 0:00:46.6]} 23... Nd4
{[%clk 0:00:09.1]} 24. Qd3 {[%clk 0:00:39]} 24... Rad8 {[%clk 0:00:09.6]} 25.
Qxa6 {[%clk 0:00:25]} 25... Rfe8 {[%clk 0:00:05.6]} 26. Nc6 {[%clk 0:00:22.3]}
26... Rd6 {[%clk 0:00:05.7]} 27. Bxd4 {[%clk 0:00:21.9]} 27... Bxd4+ {[%clk
0:00:05.7]} 28. Kh1 {[%clk 0:00:21.1]} 28... Qc3 {[%clk 0:00:05.2]} 29. Rcd1
{[%clk 0:00:15.9]} 29... Qxc6 {[%clk 0:00:03.2]} 30. Qxc6 {[%clk 0:00:15.5]}
30... Rxc6 {[%clk 0:00:05.1]} 31. Rxd4 {[%clk 0:00:16.3]} 31... Kg7 {[%clk
0:00:06.4]} 32. Rd2 {[%clk 0:00:16.2]} 32... Rec8 {[%clk 0:00:07]} 33. Rc1
{[%clk 0:00:16.3]} 33... Rc3 {[%clk 0:00:07.5]} 34. Kg1 {[%clk 0:00:17.1]} 34...
h5 {[%clk 0:00:08.8]} 35. Kf2 {[%clk 0:00:18.2]} 35... h4 {[%clk 0:00:10.1]} 36.
h3 {[%clk 0:00:17.7]} 36... g5 {[%clk 0:00:11.3]} 37. Ke2 {[%clk 0:00:18.7]}
37... Rg3 {[%clk 0:00:11.5]} 38. Kf2 {[%clk 0:00:19.3]} 38... Kg6 {[%clk
0:00:11.5]} 39. c4 {[%clk 0:00:19.6]} 39... Ra3 {[%clk 0:00:11.9]} 40. c5 {[%clk
0:00:20]} 40... Ra6 {[%clk 0:00:12.4]} 41. Rd5 {[%clk 0:00:16]} 41... f6 {[%clk
0:00:12]} 42. Re1 {[%clk 0:00:09]} 42... Ra5 {[%clk 0:00:11]} 43. Rc1 {[%clk
0:00:09.7]} 43... Ra2+ {[%clk 0:00:10]} 44. Kf1 {[%clk 0:00:06.9]} 44... Re8
{[%clk 0:00:08]} 45. c6 {[%clk 0:00:08]} 45... Ree2 {[%clk 0:00:08.9]} 46. c7
{[%clk 0:00:09.1]} 46... Rf2+ {[%clk 0:00:10.4]} 47. Kg1 {[%clk 0:00:10.1]}
47... Rxg2+ {[%clk 0:00:11.8]} 48. Kh1 {[%clk 0:00:11]} 48... Rh2+ {[%clk
0:00:13.1]} 49. Kg1 {[%clk 0:00:12.3]} 49... Rag2+ {[%clk 0:00:14.4]} 50. Kf1
{[%clk 0:00:13.2]} 50... Rc2 {[%clk 0:00:15.6]} 51. Rxc2 {[%clk 0:00:12.3]}
51... Rxc2 {[%clk 0:00:17.5]} 52. Rd7 {[%clk 0:00:13]} 52... Kf5 {[%clk
0:00:18.2]} 53. Kg1 {[%clk 0:00:13.8]} 53... Kf4 {[%clk 0:00:19.2]} 54. Kf1
{[%clk 0:00:13.9]} 54... f5 {[%clk 0:00:20.3]} 55. Rf7 {[%clk 0:00:14.2]} 55...
Ke4 {[%clk 0:00:16.1]} 56. Ke1 {[%clk 0:00:14]} 56... g4 {[%clk 0:00:16.1]} 57.
hxg4 {[%clk 0:00:12.6]} 57... fxg4 {[%clk 0:00:18]} 58. Kf1 {[%clk 0:00:13.7]}
58... h3 {[%clk 0:00:18.2]} 59. Rh7 {[%clk 0:00:07.2]} 59... Kf3 {[%clk
0:00:17.9]} 60. Rf7+ {[%clk 0:00:08]} 60... Kg3 {[%clk 0:00:18.4]} 61. Rh7
{[%clk 0:00:08.3]} 61... h2 {[%clk 0:00:19.4]} 62. Ke1 {[%clk 0:00:08.7]} 62...
Rxc7 {[%clk 0:00:20.2]} 63. Rxc7 {[%clk 0:00:08.6]} 63... h1=Q+ {[%clk
0:00:21.4]} 64. Ke2 {[%clk 0:00:10.3]} 64... Qe4+ {[%clk 0:00:21.5]} 65. Kd2
{[%clk 0:00:11.4]} 65... Qf4+ {[%clk 0:00:22.5]} 66. Kc2 {[%clk 0:00:11.8]}
66... Qxc7+ {[%clk 0:00:22.2]} 67. Kd3 {[%clk 0:00:13.7]} 67... Kf3 {[%clk
0:00:22.3]} 68. Kd4 {[%clk 0:00:14.6]} 68... Qd6+ {[%clk 0:00:21.3]} 69. Kc4
{[%clk 0:00:15.4]} 69... Ke3 {[%clk 0:00:22.1]} 70. Kc3 {[%clk 0:00:17.3]} 70...
Qc6+ {[%clk 0:00:22.4]} 71. Kb3 {[%clk 0:00:18]} 71... Kd3 {[%clk 0:00:22.6]}
0-1

[Event "*** Titled Tuesday 3|2 Blitz"]
[Site "Chess.com"]
[Date "2017.05.02"]
[Round "9"]
[White "stepanosinovsky"]
[Black "Vegan4future"]
[Result "1-0"]
[WhiteElo "2234"]
[BlackElo "2273"]
[TimeControl "180+2"]
[EndTime "15:03:27 PDT"]
[Termination "stepanosinovsky won by resignation"]

1. e4 {[%clk 0:03:02]} 1... e5 {[%clk 0:02:59.8]} 2. Nf3 {[%clk 0:03:02.1]} 2...
d6 {[%clk 0:02:56.9]} 3. d4 {[%clk 0:03:02]} 3... exd4 {[%clk 0:02:58.8]} 4.
Nxd4 {[%clk 0:03:02.6]} 4... g6 {[%clk 0:02:59.9]} 5. h4 {[%clk 0:03:00.7]} 5...
h5 {[%clk 0:03:00.3]} 6. Bg5 {[%clk 0:02:57.8]} 6... Be7 {[%clk 0:02:59.9]} 7.
Qd2 {[%clk 0:02:54.3]} 7... Bxg5 {[%clk 0:02:59.6]} 8. hxg5 {[%clk 0:02:54.5]}
8... Qe7 {[%clk 0:03:00.8]} 9. Nc3 {[%clk 0:02:54.6]} 9... c6 {[%clk 0:03:00.4]}
10. O-O-O {[%clk 0:02:53.5]} 10... Nd7 {[%clk 0:02:49.7]} 11. Bb5 {[%clk
0:02:42.9]} 11... c5 {[%clk 0:02:22.8]} 12. Nd5 {[%clk 0:02:35.9]} 12... Qd8
{[%clk 0:02:21.4]} 13. Rhe1 {[%clk 0:01:50.9]} 13... a6 {[%clk 0:01:53.6]} 14.
Bxd7+ {[%clk 0:01:27.9]} 14... Bxd7 {[%clk 0:01:55.5]} 15. e5 {[%clk 0:01:25.2]}
15... cxd4 {[%clk 0:01:43.2]} 16. exd6+ {[%clk 0:01:09.3]} 16... Kf8 {[%clk
0:01:41.1]} 17. Qxd4 {[%clk 0:01:09.2]} 17... Rh7 {[%clk 0:01:41.9]} 18. f4
{[%clk 0:01:05.1]} 18... Rc8 {[%clk 0:01:29.3]} 19. Ne7 {[%clk 0:01:03.3]} 19...
h4 {[%clk 0:01:02.4]} 20. Nxc8 {[%clk 0:00:58]} 20... Qxc8 {[%clk 0:01:04.3]}
21. Re5 {[%clk 0:00:53.4]} 21... h3 {[%clk 0:01:03]} 22. Rc5 {[%clk 0:00:51]}
22... Qd8 {[%clk 0:00:58.7]} 23. gxh3 {[%clk 0:00:51.5]} 23... Rxh3 {[%clk
0:00:57.4]} 24. Rc7 {[%clk 0:00:51.9]} 24... Rh2 {[%clk 0:00:35.2]} 25. Rxb7
{[%clk 0:00:46.6]} 25... Bf5 {[%clk 0:00:33.9]} 26. Rc7 {[%clk 0:00:45.8]} 26...
Qxc7 {[%clk 0:00:28.7]} 27. dxc7 {[%clk 0:00:43.4]} 27... Rxc2+ {[%clk
0:00:30.2]} 28. Kb1 {[%clk 0:00:44.6]} 28... Rd2+ {[%clk 0:00:25.6]} 29. Ka1
{[%clk 0:00:45.2]} 29... Rxd4 {[%clk 0:00:27.2]} 30. Rxd4 {[%clk 0:00:47]} 30...
Kg7 {[%clk 0:00:28.7]} 31. Rd8 {[%clk 0:00:39]} 31... Ne7 {[%clk 0:00:29.9]} 32.
b4 {[%clk 0:00:39.7]} 32... Nc8 {[%clk 0:00:30.2]} 33. Kb2 {[%clk 0:00:37.8]}
33... f6 {[%clk 0:00:31.5]} 34. a4 {[%clk 0:00:38.4]} 34... fxg5 {[%clk
0:00:32.7]} 35. fxg5 {[%clk 0:00:39]} 35... Kf7 {[%clk 0:00:34.3]} 36. Kc3
{[%clk 0:00:35.5]} 36... Ke7 {[%clk 0:00:35.2]} 37. Rh8 {[%clk 0:00:36.4]} 37...
Nb6 {[%clk 0:00:33.6]} 38. a5 {[%clk 0:00:34.8]} 38... Nd5+ {[%clk 0:00:34.3]}
39. Kd4 {[%clk 0:00:34.9]} 39... Nxc7 {[%clk 0:00:36.2]} 40. Ke5 {[%clk
0:00:27.2]} 40... Kd7 {[%clk 0:00:37.6]} 41. Rb8 {[%clk 0:00:25.3]} 41... Kc6
{[%clk 0:00:38.3]} 42. Rb6+ {[%clk 0:00:26.2]} 42... Kd7 {[%clk 0:00:39.7]} 43.
Rd6+ {[%clk 0:00:26.6]} 43... Ke7 {[%clk 0:00:40.5]} 44. Rc6 {[%clk 0:00:26.8]}
44... Kd7 {[%clk 0:00:40.6]} 45. Rb6 {[%clk 0:00:27.6]} 45... Ke7 {[%clk
0:00:40.3]} 46. Kd4 {[%clk 0:00:24.4]} 46... Kd7 {[%clk 0:00:40.2]} 47. Kc5
{[%clk 0:00:22.9]} 47... Ne6+ {[%clk 0:00:37.5]} 48. Kc4 {[%clk 0:00:21.5]}
48... Bg4 {[%clk 0:00:38.2]} 49. Kd5 {[%clk 0:00:20.7]} 49... Nc7+ {[%clk
0:00:36.1]} 50. Ke4 {[%clk 0:00:21]} 50... Bf5+ {[%clk 0:00:37]} 51. Ke5 {[%clk
0:00:22.3]} 51... Ke7 {[%clk 0:00:38.4]} 52. Rd6 {[%clk 0:00:22.2]} 52... Bb1
{[%clk 0:00:36.7]} 53. Rd2 {[%clk 0:00:22.7]} 53... Bf5 {[%clk 0:00:36.8]} 54.
Rh2 {[%clk 0:00:23.6]} 54... Kd7 {[%clk 0:00:37.7]} 55. Rh8 {[%clk 0:00:20.5]}
55... Kc6 {[%clk 0:00:38.8]} 56. Rb8 {[%clk 0:00:21.8]} 56... Nd5 {[%clk
0:00:36.9]} 57. Kd4 {[%clk 0:00:21.3]} 57... Nc7 {[%clk 0:00:34.9]} 58. Ke5
{[%clk 0:00:22]} 58... Nd5 {[%clk 0:00:33.4]} 59. Kd4 {[%clk 0:00:20.3]} 59...
Nc7 {[%clk 0:00:34.6]} 60. Rb6+ {[%clk 0:00:21.1]} 60... Kd7 {[%clk 0:00:32.5]}
61. Rf6 {[%clk 0:00:21.8]} 61... Ne6+ {[%clk 0:00:27.6]} 62. Kd5 {[%clk
0:00:22]} 62... Ke7 {[%clk 0:00:27.2]} 63. Ke5 {[%clk 0:00:21]} 63... Nc7 {[%clk
0:00:26.6]} 64. Rb6 {[%clk 0:00:18.4]} 64... Kd7 {[%clk 0:00:27.1]} 65. Rb8
{[%clk 0:00:19]} 65... Kc6 {[%clk 0:00:26.5]} 66. Kf6 {[%clk 0:00:17.7]} 66...
Nd5+ {[%clk 0:00:22.3]} 67. Kf7 {[%clk 0:00:18]} 67... Nc7 {[%clk 0:00:22.1]}
68. Ke7 {[%clk 0:00:14.4]} 68... Bd3 {[%clk 0:00:22.2]} 69. Rb6+ {[%clk
0:00:14.7]} 69... Kd5 {[%clk 0:00:19.8]} 70. Kd7 {[%clk 0:00:13.6]} 70... Ne6
{[%clk 0:00:15.5]} 71. Rd6+ {[%clk 0:00:13.3]} 71... Kc4 {[%clk 0:00:16.8]} 72.
Rxe6 {[%clk 0:00:13.3]} 72... Kxb4 {[%clk 0:00:18.7]} 73. Re5 {[%clk 0:00:14.2]}
73... Bb5+ {[%clk 0:00:18.1]} 74. Kd6 {[%clk 0:00:15.2]} 74... Bd3 {[%clk
0:00:19.3]} 75. Kc7 {[%clk 0:00:15.6]} 75... Bb5 {[%clk 0:00:19.4]} 76. Kb6
{[%clk 0:00:16.6]} 76... Bd3 {[%clk 0:00:21.3]} 77. Re7 {[%clk 0:00:17.3]} 77...
Kc3 {[%clk 0:00:22.6]} 78. Rd7 {[%clk 0:00:17.6]} 78... Bf1 {[%clk 0:00:23.5]}
79. Rc7+ {[%clk 0:00:18.1]} 79... Kd4 {[%clk 0:00:24.6]} 80. Rc6 {[%clk
0:00:18.4]} 80... Bd3 {[%clk 0:00:25]} 81. Rd6+ {[%clk 0:00:19.4]} 81... Ke3
{[%clk 0:00:26.6]} 82. Rxd3+ {[%clk 0:00:20.1]} 82... Kxd3 {[%clk 0:00:28.5]}
83. Kxa6 {[%clk 0:00:21.3]} 83... Ke4 {[%clk 0:00:30.4]} 84. Kb7 {[%clk
0:00:22.7]} 84... Kf5 {[%clk 0:00:32.3]} 85. a6 {[%clk 0:00:24.6]} 85... Kxg5
{[%clk 0:00:34.2]} 86. a7 {[%clk 0:00:26.5]} 86... Kf4 {[%clk 0:00:36.1]} 87.
a8=Q {[%clk 0:00:28.4]} 87... g5 {[%clk 0:00:38]} 88. Qa1 {[%clk 0:00:28.2]}
88... g4 {[%clk 0:00:39.9]} 89. Qg1 {[%clk 0:00:29.7]} 89... Kf3 {[%clk
0:00:41.8]} 90. Kc6 {[%clk 0:00:31.2]} 90... g3 {[%clk 0:00:43.7]} 91. Kd5
{[%clk 0:00:32]} 91... g2 {[%clk 0:00:45.6]} 92. Ke5 {[%clk 0:00:32.9]} 92...
Kg3 {[%clk 0:00:47.5]} 93. Ke4 {[%clk 0:00:33.9]} 93... Kh3 {[%clk 0:00:48.4]}
94. Kf4 {[%clk 0:00:34.5]} 94... Kh4 {[%clk 0:00:50.3]} 1-0

[Event "*** Titled Tuesday 3|2 Blitz"]
[Site "Chess.com"]
[Date "2017.05.02"]
[Round "9"]
[White "1random"]
[Black "BigMak2500"]
[Result "0-1"]
[WhiteElo "2296"]
[BlackElo "2387"]
[TimeControl "180+2"]
[EndTime "15:06:57 PDT"]
[Termination "BigMak2500 won by resignation"]

1. e4 {[%clk 0:03:02]} 1... c5 {[%clk 0:01:47]} 2. Nf3 {[%clk 0:02:56.6]} 2...
d6 {[%clk 0:01:48.1]} 3. d4 {[%clk 0:02:56.9]} 3... cxd4 {[%clk 0:01:50]} 4. e5
{[%clk 0:02:58.3]} 4... dxe5 {[%clk 0:01:50.4]} 5. Nxe5 {[%clk 0:02:59.8]} 5...
a6 {[%clk 0:01:47.8]} 6. Qh5 {[%clk 0:02:49.4]} 6... g6 {[%clk 0:01:42.4]} 7.
Bc4 {[%clk 0:02:51.3]} 7... e6 {[%clk 0:01:35.5]} 8. Qf3 {[%clk 0:02:51.9]} 8...
Nf6 {[%clk 0:01:33.2]} 9. Bg5 {[%clk 0:02:52.1]} 9... Bg7 {[%clk 0:01:34.3]} 10.
O-O {[%clk 0:02:43.4]} 10... Nbd7 {[%clk 0:01:29.7]} 11. Nxd7 {[%clk 0:02:41.7]}
11... Bxd7 {[%clk 0:01:31]} 12. Qxb7 {[%clk 0:02:42.4]} 12... O-O {[%clk
0:01:30.5]} 13. Nd2 {[%clk 0:02:42.8]} 13... h6 {[%clk 0:01:23.7]} 14. Bf4
{[%clk 0:02:41]} 14... Nh5 {[%clk 0:01:18.7]} 15. Bd6 {[%clk 0:02:40.3]} 15...
Re8 {[%clk 0:01:18.6]} 16. Qe4 {[%clk 0:02:39.1]} 16... Rc8 {[%clk 0:01:07.4]}
17. Be5 {[%clk 0:02:23.8]} 17... Bc6 {[%clk 0:00:58.2]} 18. Qe2 {[%clk
0:02:18.8]} 18... Bb7 {[%clk 0:00:32.5]} 19. Bxg7 {[%clk 0:02:10.1]} 19... Kxg7
{[%clk 0:00:33]} 20. Bd3 {[%clk 0:01:52.7]} 20... Qf6 {[%clk 0:00:31.4]} 21. Ne4
{[%clk 0:01:49.8]} 21... Bxe4 {[%clk 0:00:28.9]} 22. Qxe4 {[%clk 0:01:46.1]}
22... Nf4 {[%clk 0:00:27.5]} 23. Bxa6 {[%clk 0:01:45.2]} 23... Rc5 {[%clk
0:00:26.5]} 24. Bd3 {[%clk 0:01:44.6]} 24... Rg5 {[%clk 0:00:26.1]} 25. g3
{[%clk 0:01:44.9]} 25... h5 {[%clk 0:00:21.2]} 26. Kh1 {[%clk 0:01:41.4]} 26...
Nxd3 {[%clk 0:00:22.2]} 27. cxd3 {[%clk 0:01:40.1]} 27... Re5 {[%clk 0:00:22.8]}
28. Qxd4 {[%clk 0:01:26.5]} 28... Rd8 {[%clk 0:00:24.2]} 29. Qc3 {[%clk
0:01:16.2]} 29... Kh7 {[%clk 0:00:24.5]} 30. f4 {[%clk 0:01:16.3]} 30... Rf5
{[%clk 0:00:18.7]} 31. Qxf6 {[%clk 0:01:16]} 31... Rxf6 {[%clk 0:00:20.6]} 32.
a4 {[%clk 0:01:13.7]} 32... Rxd3 {[%clk 0:00:20.9]} 33. a5 {[%clk 0:01:14.9]}
33... Rd8 {[%clk 0:00:19.5]} 34. a6 {[%clk 0:01:16]} 34... Ra8 {[%clk
0:00:20.2]} 35. a7 {[%clk 0:01:11.3]} 35... Kg7 {[%clk 0:00:20.1]} 36. Rf3
{[%clk 0:01:02.2]} 36... e5 {[%clk 0:00:21.3]} 37. Kg2 {[%clk 0:00:57]} 37...
exf4 {[%clk 0:00:21.7]} 38. Rxf4 {[%clk 0:00:58.9]} 38... Rb6 {[%clk 0:00:22.6]}
39. Ra2 {[%clk 0:00:58.7]} 39... Rb7 {[%clk 0:00:22.6]} 40. Rfa4 {[%clk
0:01:00.1]} 40... Kf6 {[%clk 0:00:21.4]} 41. b4 {[%clk 0:00:59.7]} 41... Ke7
{[%clk 0:00:22.5]} 42. Kf3 {[%clk 0:00:58.4]} 42... Kd7 {[%clk 0:00:23.3]} 43.
Ke4 {[%clk 0:00:59.5]} 43... Ke6 {[%clk 0:00:22.4]} 44. Kd4 {[%clk 0:01:00]}
44... Kd6 {[%clk 0:00:23.4]} 45. Kc4 {[%clk 0:01:00]} 45... Kc6 {[%clk
0:00:24.7]} 46. b5+ {[%clk 0:00:52]} 46... Kb6 {[%clk 0:00:20.9]} 47. Ra6+
{[%clk 0:00:51.5]} 47... Kc7 {[%clk 0:00:22]} 48. Kc5 {[%clk 0:00:52.7]} 48...
Kc8 {[%clk 0:00:22.8]} 49. Rc6+ {[%clk 0:00:53.4]} 49... Kd8 {[%clk 0:00:23.5]}
50. Rd2+ {[%clk 0:00:53.7]} 50... Ke8 {[%clk 0:00:24.3]} 51. b6 {[%clk
0:00:54.1]} 51... Re7 {[%clk 0:00:21.1]} 52. Rc7 {[%clk 0:00:47.9]} 52... Re5+
{[%clk 0:00:17.7]} 53. Kc6 {[%clk 0:00:38.3]} 53... Re6+ {[%clk 0:00:17.9]} 54.
Kb7 {[%clk 0:00:38.5]} 54... Kf8 {[%clk 0:00:17.5]} 55. Kxa8 {[%clk 0:00:38.5]}
55... Re8+ {[%clk 0:00:18.5]} 56. Kb7 {[%clk 0:00:38.6]} 56... Kg7 {[%clk
0:00:09.7]} 57. Rdd7 {[%clk 0:00:40.5]} 57... Rf8 {[%clk 0:00:10.5]} 58. Rxf7+
{[%clk 0:00:38.4]} 58... Rxf7 {[%clk 0:00:11.1]} 59. Rxf7+ {[%clk 0:00:40.3]}
59... Kxf7 {[%clk 0:00:13]} 60. Kc6 {[%clk 0:00:41.5]} 60... Kf6 {[%clk
0:00:13.6]} 61. b7 {[%clk 0:00:43.4]} 61... Kg5 {[%clk 0:00:14.5]} 62. a8=Q
{[%clk 0:00:45.2]} 62... Kg4 {[%clk 0:00:14.9]} 63. b8=Q {[%clk 0:00:45.5]}
63... Kh3 {[%clk 0:00:15.8]} 64. Qa2 {[%clk 0:00:46.9]} 64... g5 {[%clk
0:00:16.4]} 65. Qe2 {[%clk 0:00:36.4]} 65... h4 {[%clk 0:00:14.3]} 66. Qf2
{[%clk 0:00:32.9]} 66... g4 {[%clk 0:00:15.1]} 67. gxh4 {[%clk 0:00:32.8]} 67...
g3 {[%clk 0:00:14.8]} 68. hxg3 {[%clk 0:00:34.7]} 68... Kg4 {[%clk 0:00:15.3]}
69. Qg2 {[%clk 0:00:35.7]} 69... Kf5 {[%clk 0:00:15.2]} 70. Qbb2 {[%clk
0:00:37.6]} 70... Ke6 {[%clk 0:00:15.1]} 71. g4 {[%clk 0:00:37.2]} 71... Ke7
{[%clk 0:00:15.7]} 72. Qbf2 {[%clk 0:00:39]} 72... Kd8 {[%clk 0:00:16.5]} 73.
Qfg3 {[%clk 0:00:39.9]} 73... Ke7 {[%clk 0:00:17.4]} 74. g5 {[%clk 0:00:41.4]}
74... Kf8 {[%clk 0:00:18.1]} 75. h5 {[%clk 0:00:41.6]} 75... Kg7 {[%clk
0:00:19.4]} 76. g6 {[%clk 0:00:41.4]} 76... Kh6 {[%clk 0:00:18.3]} 77. Qh4
{[%clk 0:00:41.4]} 77... Kg7 {[%clk 0:00:18.5]} 78. Qhg5 {[%clk 0:00:41.4]}
78... Kf8 {[%clk 0:00:19]} 79. h6 {[%clk 0:00:41.9]} 79... Ke8 {[%clk
0:00:19.6]} 80. Qh5 {[%clk 0:00:39.3]} 80... Kd8 {[%clk 0:00:19.6]} 81. Qgh3
{[%clk 0:00:39.1]} 81... Ke7 {[%clk 0:00:19.9]} 82. Qh2 {[%clk 0:00:40.5]} 82...
Kd8 {[%clk 0:00:20.6]} 83. Qh1 {[%clk 0:00:41.8]} 83... Kc8 {[%clk 0:00:21.3]}
84. Qg1 {[%clk 0:00:43.7]} 84... Kb8 {[%clk 0:00:22.4]} 85. Qg2 {[%clk
0:00:45.6]} 85... Ka7 {[%clk 0:00:23.5]} 86. Qf2+ {[%clk 0:00:45.6]} 86... Ka8
{[%clk 0:00:24.3]} 87. Qf1 {[%clk 0:00:47.4]} 87... Ka7 {[%clk 0:00:25]} 88. Qe1
{[%clk 0:00:49.3]} 88... Ka6 {[%clk 0:00:25.7]} 89. Qee2+ {[%clk 0:00:49.6]}
89... Ka7 {[%clk 0:00:26.3]} 90. Qd2 {[%clk 0:00:50.2]} 90... Ka6 {[%clk
0:00:26.5]} 91. Qdd1 {[%clk 0:00:50.5]} 91... Ka7 {[%clk 0:00:27.7]} 92. Qc1
{[%clk 0:00:51.5]} 92... Ka6 {[%clk 0:00:28.7]} 93. Qc2 {[%clk 0:00:52.8]} 93...
Ka7 {[%clk 0:00:30]} 94. Qb2 {[%clk 0:00:54.3]} 94... Ka6 {[%clk 0:00:31.4]} 95.
Qb1 {[%clk 0:00:55.5]} 95... Ka7 {[%clk 0:00:32.8]} 96. Qb3 {[%clk 0:00:56.7]}
96... Ka6 {[%clk 0:00:34]} 97. Qh4 {[%clk 0:00:56.9]} 97... Ka7 {[%clk
0:00:35.1]} 98. Qbc4 {[%clk 0:00:56.4]} 98... Ka8 {[%clk 0:00:35.9]} 99. Qc3
{[%clk 0:00:57.8]} 99... Ka7 {[%clk 0:00:36.9]} 100. Qd3 {[%clk 0:00:58.3]}
100... Ka8 {[%clk 0:00:37.7]} 101. Qdd4 {[%clk 0:00:59.7]} 101... Kb8 {[%clk
0:00:38.4]} 102. Qde4 {[%clk 0:01:01]} 102... Ka8 {[%clk 0:00:38.7]} 103. Qe3
{[%clk 0:01:02.3]} 103... Kb8 {[%clk 0:00:39.4]} 104. Qf3 {[%clk 0:01:03.6]}
104... Ka8 {[%clk 0:00:40.2]} 105. Qff4 {[%clk 0:01:05]} 105... Ka7 {[%clk
0:00:41.3]} 106. Qfg4 {[%clk 0:01:06.3]} 106... Ka6 {[%clk 0:00:41.6]} 107. Qgh3
{[%clk 0:01:07.2]} 107... Ka7 {[%clk 0:00:42.6]} 108. h7 {[%clk 0:01:08.6]}
108... Ka6 {[%clk 0:00:43.6]} 109. Qh2 {[%clk 0:01:09.2]} 109... Ka7 {[%clk
0:00:44.6]} 110. Qh1 {[%clk 0:01:10.5]} 110... Ka6 {[%clk 0:00:45.9]} 111. Qg1
{[%clk 0:01:12]} 111... Ka5 {[%clk 0:00:39.3]} 112. Qg2 {[%clk 0:01:13.3]}
112... Ka6 {[%clk 0:00:40.2]} 113. Qgf2 {[%clk 0:01:14.4]} 113... Ka5 {[%clk
0:00:40.9]} 114. Qe1+ {[%clk 0:01:15.4]} 114... Ka6 {[%clk 0:00:41.9]} 115. Qf1+
{[%clk 0:01:13.3]} 115... Ka7 {[%clk 0:00:42.4]} 116. Qe2 {[%clk 0:01:13.9]}
116... Ka8 {[%clk 0:00:40.9]} 117. Qd2 {[%clk 0:01:15.1]} 117... Ka7 {[%clk
0:00:41.8]} 118. Qd1 {[%clk 0:01:16.4]} 118... Ka6 {[%clk 0:00:42]} 119. Qc1
{[%clk 0:01:17.8]} 119... Ka7 {[%clk 0:00:42.8]} 120. Qc2 {[%clk 0:01:19.1]}
120... Ka6 {[%clk 0:00:44]} 121. Qb2 {[%clk 0:01:20.4]} 121... Ka5 {[%clk
0:00:43.8]} 122. Qb1 {[%clk 0:01:20.8]} 122... Ka6 {[%clk 0:00:43.9]} 123. Qbb4
{[%clk 0:01:22]} 123... Ka7 {[%clk 0:00:44.8]} 124. Qb3 {[%clk 0:01:23.9]}
124... Ka6 {[%clk 0:00:45.7]} 125. Qbc4+ {[%clk 0:01:24.7]} 125... Ka7 {[%clk
0:00:46.3]} 126. Qc3 {[%clk 0:01:26.1]} 126... Ka6 {[%clk 0:00:47.5]} 127. Qcd4
{[%clk 0:01:26.1]} 127... Ka5 {[%clk 0:00:48]} 128. Qde4 {[%clk 0:01:25.1]}
128... Ka6 {[%clk 0:00:48.8]} 129. Qd3+ {[%clk 0:01:26.4]} 129... Ka5 {[%clk
0:00:49.8]} 130. Qe3 {[%clk 0:01:27.3]} 130... Ka6 {[%clk 0:00:50.7]} 131. Qee4
{[%clk 0:01:25.7]} 131... Ka5 {[%clk 0:00:51.6]} 132. Qef4 {[%clk 0:01:24.8]}
132... Ka6 {[%clk 0:00:52.6]} 133. Qf3 {[%clk 0:01:26.1]} 133... Ka5 {[%clk
0:00:53.6]} 134. Qfg3 {[%clk 0:01:27.4]} 134... Ka6 {[%clk 0:00:54.7]} 135. Qgg4
{[%clk 0:01:27.6]} 135... Ka7 {[%clk 0:00:55.8]} 136. Qgg5 {[%clk 0:01:28.6]}
136... Ka6 {[%clk 0:00:56.2]} 137. Qh3 {[%clk 0:01:28.8]} 137... Ka7 {[%clk
0:00:57]} 138. Qgh5 {[%clk 0:01:29.1]} 138... Kb8 {[%clk 0:00:57.2]} 139. Q5f5
{[%clk 0:01:29.3]} 139... Ka7 {[%clk 0:00:57.9]} 140. Qe5 {[%clk 0:01:29.9]}
140... Ka8 {[%clk 0:00:58.2]} 141. Qd5 {[%clk 0:01:30.8]} 141... Kb8 {[%clk
0:00:58.5]} 142. Qd1 {[%clk 0:01:30.6]} 142... Ka7 {[%clk 0:00:59.2]} 143. Qdh1
{[%clk 0:01:30.9]} 143... Kb8 {[%clk 0:00:58.8]} 144. Q3h2+ {[%clk 0:01:15.4]}
144... Ka7 {[%clk 0:00:57.5]} 145. Q1g1+ {[%clk 0:01:14.6]} 145... Ka8 {[%clk
0:00:58.3]} 146. Qf1 {[%clk 0:01:15.9]} 146... Ka7 {[%clk 0:00:59.1]} 147. Qe1
{[%clk 0:01:16.4]} 147... Ka8 {[%clk 0:01:00]} 148. Qd1 {[%clk 0:01:17.1]}
148... Ka7 {[%clk 0:01:00.7]} 149. Qc1 {[%clk 0:01:18.3]} 149... Ka8 {[%clk
0:01:01.1]} 150. Qb1 {[%clk 0:01:19.5]} 150... Ka7 {[%clk 0:01:02.1]} 151. Qbb2
{[%clk 0:01:20.6]} 151... Ka8 {[%clk 0:01:03.2]} 152. Qbc2 {[%clk 0:01:21.3]}
152... Ka7 {[%clk 0:01:04.1]} 153. Qcd2 {[%clk 0:01:22.6]} 153... Ka8 {[%clk
0:01:05]} 154. Qde2 {[%clk 0:01:23.9]} 154... Ka7 {[%clk 0:01:06.3]} 155. Qef2+
{[%clk 0:01:24.9]} 155... Ka8 {[%clk 0:01:06.6]} 156. Qfg2 {[%clk 0:01:26.2]}
156... Ka7 {[%clk 0:01:07.7]} 157. g7 {[%clk 0:01:27.5]} 157... Ka6 {[%clk
0:01:06.4]} 0-1